Cogmind - Beta 13 @@@ ROGUE MODE // 2024.06.06 @ 01:16:14 Player: hanzu Result: Destroyed by YI-UF0 with YI-UF0's Doublenader Performance ------------- Evolutions (0) 0 Regions Visited (4) 800 Robots Destroyed (21) 105 Value Destroyed (613) 613 Prototype IDs (0) 0 Alien Tech Used (0) 0 Bonus (0) 0 TOTAL SCORE: 1518 Bonus ------- None Cogmind --------- Core Integrity 0/250 Matter 196/300 Energy 92/100 System Corruption 0% Temperature Cool (10) Movement Treading (240) Ox1 Location -9/Mines Parts ------- > --- POWER (1) -------- (None) > --- PROPULSION (2) --- Light Treads > --- UTILITY (2) ------ Large Storage Unit > --- WEAPON (2) ------- Light Cannon Light Cannon > --- INVENTORY (15) --- Ion Engine Reinforced Deuterium Engine Heat Sink Improved Heat Sink Huge Storage Unit High-capacity Matter Pod (200) Visual Processing Unit Tractor Beam Rocket Launcher Peak State ------------ > --- POWER ------------ Ion Engine > --- PROPULSION ------- Light Treads Light Treads > --- UTILITY ---------- Heat Sink Large Storage Unit > --- WEAPON ----------- Beam Cannon Light Cannon > --- INVENTORY -------- Ion Engine Light Treads Light Treads Huge Storage Unit Large Matter Pod High-capacity Matter Pod Visual Processing Unit Light Cannon Light Cannon [Rating: 8] Favorites ----------- Power Ion Engine Engine Ion Engine Propulsion Light Treads Treads Light Treads Utility Large Storage Unit Device Heat Sink Storage Large Storage Unit Processor Signal Interpreter Weapon Beam Cannon Energy Gun Medium Laser Energy Cannon Beam Cannon Ballistic Gun Assault Rifle Ballistic Cannon Light Cannon Launcher Grenade Launcher Build | -11 -10 -10 -10 -9 ------- Run | Yrd Mat Min Exi Min Slots Evolved . | . . . . . Power . | . . . . . Propulsion . | . . . . . Utility . | . . . . . Weapon . | . . . . . Parts Attached 18 | 6 7 1 . 4 Power 2 | 1 1 . . . Engine 2 | 1 1 . . . Core . | . . . . . Reactor . | . . . . . Propulsion 4 | 2 1 1 . . Treads 4 | 2 1 1 . . Leg . | . . . . . Wheel . | . . . . . Hover . | . . . . . Flight . | . . . . . Utility 4 | 1 3 . . . Device 1 | . 1 . . . Storage 2 | 1 1 . . . Processor 1 | . 1 . . . Hackware . | . . . . . Protection . | . . . . . Artifact . | . . . . . Weapon 8 | 2 2 . . 4 Energy Gun 1 | 1 . . . . Energy Cannon 1 | . 1 . . . Ballistic Gun 1 | 1 . . . . Ballistic Cannon 4 | . 1 . . 3 Launcher 1 | . . . . 1 Special Weapon . | . . . . . Impact Weapon . | . . . . . Slashing Weapon . | . . . . . Piercing Weapon . | . . . . . Special Melee Weapon . | . . . . . Unidentified Prototypes . | . . . . . Parts Lost 8 | . 1 1 . 6 Power 1 | . . . . 1 Propulsion 3 | . 1 1 . 1 Utility 1 | . . . . 1 Weapon 3 | . . . . 3 Highest Loss Streak 6 | . 1 1 . 6 To Critical Strikes . | . . . . . Average Slot Usage (%) 98 | . 98 99 100 90 Engine 13 | . 14 14 14 12 Treads 27 | . 27 27 28 22 Device 8 | . 5 14 14 12 Storage 14 | . 14 14 14 14 Processor 4 | . 7 . . . Energy Gun 4 | . 8 . . . Energy Cannon 8 | . 5 14 14 12 Ballistic Gun 5 | . 9 . . . Ballistic Cannon 7 | . 4 14 14 8 Naked Turns . | . . . . . Heaviest Build 32 | 14 32 32 32 32 Greatest Support 40 | 40 40 40 40 40 Greatest Overweight (x) 1 | . 1 . . 1 Average Overweight (x) . | . . . . . Largest Inventory Capacity 15 | 8 15 15 15 15 Average Capacity 13 | 7 13 15 15 15 Most Carried 12 | 2 10 10 11 12 Average Carried 7 | 1 5 9 10 11 Final Capacity 15 | 8 15 15 15 15 Final Carried 11 | 2 10 10 11 9 Class Distribution -------------------- 100% | Mutant Dominant Class ---------------- Mutant | -10/Materials Mutant | -10/Mines Mutant | -10/Exiles Mutant | -9/Mines Resources | -11 -10 -10 -10 -9 ----------- Run | Yrd Mat Min Exi Min Matter Collected 827 | 153 527 147 . . Remotely . | . . . . . Salvage Created 759 | . 588 149 . 22 Parts 40 | . 36 4 . . Haulers Intercepted 1 | . 1 . . . Recyclers Shooed 1 | . 1 . . . Parts Field Recycled . | . . . . . Retrieved Matter . | . . . . . Parts Self-Destructed . | . . . . . Prevented . | . . . . . Kills | -11 -10 -10 -10 -9 ------- Run | Yrd Mat Min Exi Min Combat Hostiles Destroyed 24 | . 13 4 . 7 Guns 4 | . 4 . . . Cannons 13 | . 9 4 . . AOE 7 | . . . . 7 Classes Destroyed 7 | . 6 . . 1 Worker 1 | . 1 . . . Hauler 1 | . 1 . . . Recycler 1 | . 1 . . . Watcher 1 | . 1 . . . Swarmer 3 | . 3 . . . Grunt 14 | . 10 4 . . Assembled 7 | . . . . 7 Best Kill Streak 7 | . 4 2 . 7 Combat Bots Only 7 | . 4 2 . 7 Max Kills in Single Turn 1 | . 1 1 . 1 Gunslinging . | . . . . . Exploded 1 | . . . . 1 Melee . | . . . . . Uniques/NPCs Destroyed . | . . . . . Combat | -11 -10 -10 -10 -9 -------- Run | Yrd Mat Min Exi Min Hostile Shots Fired 112 | . 73 18 . 21 Missed 31 | . 21 3 . 7 Damage Taken 1289 | . 607 213 . 469 Core 253 | . 84 22 . 147 Absorbed by Shields . | . . . . . Core Remaining (%) 100 | 100 . . . . Volleys Fired 99 | . 75 13 . 11 Largest 2 | . 2 2 . 2 Hottest 95 | . 95 95 . 95 Shots Fired 151 | . 110 26 . 15 Gun 69 | . 69 . . . Cannon 75 | . 41 26 . 8 Launcher 7 | . . . . 7 Special . | . . . . . Kinetic 94 | . 75 13 . 6 Thermal 50 | . 35 13 . 2 Explosive 7 | . . . . 7 Electromagnetic . | . . . . . Robot Hit Streak 14 | . 14 6 . 3 Robot Miss Streak 5 | . 5 3 . 1 Penetration Max . | . . . . . Secondary Targets . | . . . . . Shots Hit Robots 102 | . 76 16 . 10 Core Hits 46 | . 25 6 . 15 Critical Kills 2 | . 2 . . . Critical Parts Destroyed 1 | . 1 . . . Critical Strikes 8 | . 8 . . . Burn 5 | . 5 . . . Destroy 3 | . 3 . . . Melee Attacks . | . . . . . Impact . | . . . . . Slashing . | . . . . . Piercing . | . . . . . Sneak Attacks . | . . . . . Combat Hostiles . | . . . . . Follow-up Attacks . | . . . . . Damage Inflicted 1918 | . 1091 310 . 517 Guns 619 | . 619 . . . Cannons 882 | . 472 310 . 100 Explosions 417 | . . . . 417 Melee . | . . . . . Ramming . | . . . . . Kinetic 909 | . 661 166 . 82 Thermal 592 | . 430 144 . 18 Explosive 417 | . . . . 417 Electromagnetic . | . . . . . Impact . | . . . . . Slashing . | . . . . . Piercing . | . . . . . Highest Corruption . | . . . . . Average Corruption . | . . . . . Corruption Purged . | . . . . . Corruption Blocked . | . . . . . Overload Shots . | . . . . . Overflow Damage 39 | . 15 . . 24 Projectiles 32 | . 15 . . 17 Explosions 7 | . . . . 7 Melee . | . . . . . Knockbacks 7 | . 4 2 . 1 Impact . | . . . . . Kinetic 7 | . 4 2 . 1 Secondary . | . . . . . Self-Inflicted Damage 105 | . . . . 105 Shots 3 | . . . . 3 Rammed . | . . . . . Targets Rammed . | . . . . . Kicked . | . . . . . Crushed . | . . . . . Highest Temperature 219 | . 219 99 . 41 Average Temperature 49 | . 52 49 . 21 Received Heat Transfer 396 | . 273 123 . . Effects 1 | . 1 . . . Interference 1 | . 1 . . . Siege Activations . | . . . . . Robots Corrupted . | . . . . . Combat Hostiles . | . . . . . Parts Fried . | . . . . . Impact Corruptions . | . . . . . Robots Melted . | . . . . . Combat Hostiles . | . . . . . Parts Melted 1 | . 1 . . . Heat Transferred 1702 | . 1369 296 . 37 Parts Sabotaged . | . . . . . Parts Stolen . | . . . . . Parts Stripped . | . . . . . Power Chain Reactions . | . . . . . Alert | -11 -10 -10 -10 -9 ------- Run | Yrd Mat Min Exi Min Peak Influence 176 | . 176 121 . 65 Initial 31 | . . 31 . . Average 61 | . 52 114 . 19 Maximum Alert Level . | . . . . . Low Security (%) 100 | 100 100 100 . 100 Level 1 . | . . . . . Level 2 . | . . . . . Level 3 . | . . . . . Level 4 . | . . . . . Level 5 . | . . . . . High Security . | . . . . . Max Security . | . . . . . Squads Dispatched 4 | . 4 . . . Investigation 2 | . 2 . . . Extermination . | . . . . . Reinforcement 2 | . 2 . . . Assault . | . . . . . Garrison . | . . . . . Intercept . | . . . . . Searches Triggered . | . . . . . Construction Impeded . | . . . . . Haulers Reinforced . | . . . . . Active Scanning Responses . | . . . . . Cargo Convoy Interrupts . | . . . . . Stealth | -11 -10 -10 -10 -9 --------- Run | Yrd Mat Min Exi Min Distress Signals . | . . . . . Communications Jammed . | . . . . . Distress Signals . | . . . . . Times Spotted 33 | . 20 4 . 9 Peak Tracking Total 8 | . 5 2 . 8 Tactical Retreats 1 | . . . . 1 Traps | -11 -10 -10 -10 -9 ------- Run | Yrd Mat Min Exi Min Traps Triggered 2 | . 2 . . . Indirectly . | . . . . . Trap Hack Attempts . | . . . . . Triggered . | . . . . . Disarmed . | . . . . . Reprogrammed . | . . . . . Reused . | . . . . . Traps Extracted . | . . . . . Installed . | . . . . . Triggered . | . . . . . Machines | -11 -10 -10 -10 -9 ---------- Run | Yrd Mat Min Exi Min Machines Disabled 3 | . 1 . . 2 Max in Single Turn 2 | . 1 . . 2 Machines Repaired . | . . . . . Machines Dismantled . | . . . . . Machines Sabotaged . | . . . . . Overloaded Fab Kills . | . . . . . Hacking | -11 -10 -10 -10 -9 --------- Run | Yrd Mat Min Exi Min Machines Accessed 8 | . 7 . 1 . Terminals 6 | . 6 . . . Fabricators . | . . . . . Repair Stations 1 | . 1 . . . Recycling Units . | . . . . . Scanalyzers . | . . . . . Garrison Access . | . . . . . Total Hacks 23 | . 22 . 1 . Successful 11 | . 10 . 1 . Failed 11 | . 11 . . . Catastrophic 1 | . 1 . . . Database Lockouts 1 | . 1 . . . Manual 19 | . 19 . . . Terminals 21 | . 21 . . . Fabricators . | . . . . . Repair Stations 1 | . 1 . . . Recycling Units . | . . . . . Scanalyzers . | . . . . . Garrison Access . | . . . . . Terminal Hacks 7 | . 6 . 1 . Record 1 | . . . 1 . Robot Analysis 3 | . 3 . . . Unreport Threat 3 | . 3 . . . Fabricator Hacks . | . . . . . Repair Station Hacks . | . . . . . Recycling Unit Hacks . | . . . . . Scanalyzer . | . . . . . Garrison Access Hacks . | . . . . . Unauthorized Hacks 4 | . 4 . . . Terminals 3 | . 3 . . . Assimilate 1 | . 1 . . . Botnet 1 | . 1 . . . Operators 1 | . 1 . . . Fabricators . | . . . . . Repair Stations 1 | . 1 . . . Mechanics 1 | . 1 . . . Recycling Units . | . . . . . Scanalyzers . | . . . . . Garrison Access . | . . . . . Data Cores Recovered . | . . . . . Used . | . . . . . Hacking Detections 5 | . 5 . . . Full Trace Events 1 | . 1 . . . Feedback Events . | . . . . . Feedback Blocked . | . . . . . Robot Schematics Acquired . | . . . . . Robots Built . | . . . . . Authchips . | . . . . . Time . | . . . . . Total Robot Build Rating . | . . . . . Part Schematics Acquired . | . . . . . Parts Built . | . . . . . Authchips . | . . . . . Time . | . . . . . Total Part Build Rating . | . . . . . Parts Repaired . | . . . . . Time . | . . . . . Parts Recycled . | . . . . . Recycled Matter . | . . . . . Retrieved Matter . | . . . . . Retrieved Components . | . . . . . Parts Scanalyzed . | . . . . . Part Schematics Acquired . | . . . . . Parts Damaged . | . . . . . Bothacking | -11 -10 -10 -10 -9 ------------ Run | Yrd Mat Min Exi Min Used RIF Installer . | . . . . . Robots Hacked . | . . . . . Non-combat . | . . . . . Combat . | . . . . . Robot Hacks Applied . | . . . . . Relay Couplers Released . | . . . . . Fabnet Peak Effective % . | . . . . . Robots Rewired . | . . . . . Allies Hacked . | . . . . . Hacks Repelled . | . . . . . Allies | -11 -10 -10 -10 -9 -------- Run | Yrd Mat Min Exi Min Total Allies 3 | . . 3 . . Largest Group 3 | . . 3 3 3 Highest-Rated Group 40 | . . 40 40 40 Highest-Rated Ally 16 | . . 16 16 16 Total Orders . | . . . . . Ally Attacks 10 | . . . . 10 Total Damage 101 | . . . . 101 Kills 2 | . . . . 2 Allies Corrupted . | . . . . . Allies Melted . | . . . . . Intel | -11 -10 -10 -10 -9 ------- Run | Yrd Mat Min Exi Min Robot Analysis Total 3 | . 3 . . . Derelict Logs Recovered . | . . . . . Drone Launches . | . . . . . Drone Recoveries . | . . . . . Exploration | -11 -10 -10 -10 -9 ------------- Run | Yrd Mat Min Exi Min Turns Passed 1903 | 91 1111 381 208 112 Spaces Moved 1001 | 60 552 211 130 48 Core 15 | 15 . . . . Treads 986 | 45 552 211 130 48 Legs . | . . . . . Wheels . | . . . . . Hover . | . . . . . Flight . | . . . . . Fastest Speed 50 | 50 160 160 160 160 Average Speed 159 | 132 160 160 160 173 Slowest Speed 240 | 160 240 160 160 240 Overloaded Moves . | . . . . . Propulsion Burnouts . | . . . . . Robots Hopped . | . . . . . Cave-ins Triggered . | . . . . . Exploration Rate (%) 41 | 4 88 46 48 23 Regions Visited 4 Branch Regions 3 Pre-discovered Areas 1 | . . . 1 . Known Exits Taken . | . . . . . Unknown Exits Taken 4 | 1 1 1 1 . Scrap Searched 1 | . . 1 . . Spaces Dug . | . . . . . Terrain Destroyed 54 | . . . . 54 Melee . | . . . . . Projectile . | . . . . . AOE 54 | . . . . 54 Terrain Rammed . | . . . . . Walls Destroyed . | . . . . . Machines Disabled . | . . . . . Actions | -11 -10 -10 -10 -9 --------- Run | Yrd Mat Min Exi Min Total 1161 | 69 669 229 130 64 Wait 19 | 2 13 4 . . Move 997 | 59 551 210 129 48 Hop . | . . . . . Pick Up 19 | 2 14 1 1 1 Fast Attach 9 | 6 3 . . . Attach 5 | . 1 1 . 3 Detach . | . . . . . Swap 4 | . 3 . . 1 Drop 9 | . 9 . . . Fire 99 | . 75 13 . 11 Melee . | . . . . . Ram . | . . . . . Kick . | . . . . . Crush . | . . . . . Escape Stasis . | . . . . . Rewire . | . . . . . Trap . | . . . . . Miscellaneous . | . . . . . Route ------- -11/Scrapyard -10/Materials (discovered 4 exits: [*Mat x3] / [*Min]) -10/Mines -10/Exiles -9/Mines History --------- Turn | Location | Event 43 | -11/Scrapyard | Discovered new exit (range 15) 92 | -11/Scrapyard | Entered Materials 293 | -10/Materials | Discovered new exit (range 8) 330 | -10/Materials | Build established: Mutant 535 | -10/Materials | Discovered new exit (range 13) 590 | -10/Materials | Central database locked down 741 | -10/Materials | Discovered new exit (range 9) 1189 | -10/Materials | Discovered new exit (range 10) 1203 | -10/Materials | Entered Mines 1305 | -10/Mines | Assisted by bots powering up and referring to "LRC-V3" 1333 | -10/Mines | Received a Rocket Launcher from a helpful Derelict 1575 | -10/Mines | Discovered new exit (range 6) 1584 | -10/Mines | Entered Exiles 1584 | -10/Exiles | Accompanied by 3 allies 1625 | -10/Exiles | Met 8R-AWN 1653 | -10/Exiles | Met EX-HEX 1712 | -10/Exiles | Met EX-DEC 1723 | -10/Exiles | Learned location of Zion (-6) 1779 | -10/Exiles | Discovered new exit (range 10) 1792 | -10/Exiles | Entered Mines 1792 | -9/Mines | Accompanied by 3 allies 1793 | -9/Mines | YI-UF0 nonchalantly dropped a Grenade Launcher on the ground 1830 | -9/Mines | Assembled infested the area 1872 | -9/Mines | Core integrity fell below 50% 1883 | -9/Mines | Lost 3 allies 1892 | -9/Mines | Destroyed 7 combat bots 1895 | -9/Mines | Core integrity fell below 20% 1904 | -9/Mines | Destroyed by YI-UF0 with YI-UF0's Doublenader Last Messages --------------- 01889_ K-01 Serf collects debris. 01890_ The unstable cave ceiling collapses. 01890_ K-01 Serf collects debris. 01890_ Heat Sink destroyed. 01890_ Grenade Launcher destroyed. 01894_ T-07 Excavator is excavating. 01894_ K-01 Serf collects debris. 01895_ K-01 Serf cleans the Core Extractor. 01896_ Lgt. Cannon destroyed. 01897_ The unstable cave ceiling collapses. 01897_ K-01 Serf collects debris. 01898_ T-07 Excavator is excavating. 01898_ K-01 Serf cleans the Core Extractor. 01899_ Ion Engine destroyed. 01899_ Beam Cannon destroyed. 01901_ YI-UF0 knocked back. 01902_ K-01 Serf collects debris. 01902_ T-07 Excavator is excavating. 01903_ YI-UF0 mumbles something. 01904_ Destroyed Shock Absorption System. Map ----- +----------------------------------------------------+ | ?????????????????????????????????????????????????? | | ?????????????????????????????????????????????????? | | ?????????????????????????????????????????????????? | | ?????????????????????????????????????????????????? | | ?????????????????????????????????????????????????? | | ?????????????????????? ???????????????????????? | | ?????????????????????? ?????????????????????? | | ????????????????????? #????????????????????? | | ????????????????????? #????????????????????? | | ?????????????????????? ?????????????????????? | | ?????????????????????? ?????????????????????? | | ?????????????????????? #?????????????????????? | | ?????????????????????? #?????????????????????? | | ?????????????????????? #?????????????????????? | | ??????????????????????# #?????????????????????? | | ??????????????????????# #?????????????????????? | | ?????????????????????## #?????????????????????? | | ???????????????????###= ! ##????????????????????? | | ??????????????????## %=% % ?????????????????????? | | ?????????????????## !!=! *#??????????????????????? | | ??????????????#### %*%=###?????????????????????? | | ?????????????## % !* # ###???????????????????? | | ?##??????????# % =% ##??????????????????? | | ## ?????????## g # ####????????????? | | # ????????## #????????????? | | # ???????# @ t #????????????? | | # ???????# # #?????????????? | | # ???????# ### ###?????????????? | | # #?????## #?# #???????????????? | | # ###### #?## #???????????????? | | ?# ## ##??# ######??????????? | | ??# ##??## k ???????? | | ??### ##???# ???????? | | ????# ### #????## """ """ """ ????????? | | ?#### #?## #???# "" """ "???????????? | | ## #??#### #??#### """ """ """?????????????? | | # ##????## #???### ??????????????? | | # #?????? #?????# """ """ ""??????????????? | | # #?????? #?????# """ """ ""??????????????? | | # ##??????###?????# """ """ ""??????????????? | | # ###???????????????# ? ??????????????????? | | ## ##?????????????????####??##??????????????????? | | ?###?????????????????????????????????????????????? | | ?????????????????????????????????????????????????? | | | | | | | | | | | | | +----------------------------------------------------+ Best States ------------- Heat Dissipation 35 Energy Generation 10 Energy Capacity 250 Matter Stores 300 Matter Capacity 300 Sight Range 16 Terrain Scan Density 10 Evasion (%) 50 Recoil Reduction 2 Item Schematics ----------------- None Robot Schematics ------------------ None Fabricated ------------ Nothing Alien Tech Used ----------------- None Achievements -------------- None Challenges ------------ None Game ------ Seed MiningSupersonicPrototype Manual? 0 Play Time 00:11:54 Cumulative 191.6 hours Start 2024.06.06 @ 01:05:47 End 2024.06.06 @ 01:16:14 Sessions 2 Manual Loads 0 Difficulty Rogue Special Mode None Game No. 169 Rogue 169 Adventurer 0 Explorer 0 Win Type - Total 2 Types 2/0/0/0/0/0/0/0/0 Lore% 53 Gallery% 68 Achievement% 55 Wizard Run 0 Options --------- Layout 0 ASCII 0 Keyboard 0 Movement Numpad Keybinds 0 Fullscreen 1 Font 18/SmallcapsGlow Map View 76x50 Zoom Use 0% Tactical HUD 1 Map Filters NONE Filters NONE Steam 1 RUN: 82d2347d-af75-4563-8be6-60e4bf6291f7